[Event "*** Titled Tuesday Blitz AM"]
[Site "Chess.com"]
[Date "2020.01.07"]
[Round "2"]
[White "liczner"]
[Black "Nbk90"]
[Result "1-0"]
[WhiteElo "2819"]
[BlackElo "2553"]
[TimeControl "180+2"]
[EndTime "9:25:09 PST"]
[Termination "liczner won on time"]

1. e4 {[%clk 0:03:01.9]} 1... c5 {[%clk 0:02:59]} 2. Nf3 {[%clk 0:03:02.8]} 2...
e6 {[%clk 0:02:59.5]} 3. d4 {[%clk 0:03:02.9]} 3... cxd4 {[%clk 0:03:00.8]} 4.
Nxd4 {[%clk 0:03:04.8]} 4... Nf6 {[%clk 0:03:01.7]} 5. Nc3 {[%clk 0:03:05.3]}
5... Nc6 {[%clk 0:03:02.7]} 6. Ndb5 {[%clk 0:03:05.8]} 6... Bc5 {[%clk
0:03:01.6]} 7. Bf4 {[%clk 0:03:04.7]} 7... O-O {[%clk 0:03:00.4]} 8. Bc7 {[%clk
0:03:05]} 8... Qe7 {[%clk 0:03:00.6]} 9. Bd6 {[%clk 0:03:04.6]} 9... Bxd6 {[%clk
0:03:00.9]} 10. Nxd6 {[%clk 0:02:43.1]} 10... Qd8 {[%clk 0:03:02.8]} 11. Be2
{[%clk 0:02:07.1]} 11... a6 {[%clk 0:02:55.2]} 12. a4 {[%clk 0:01:57.9]} 12...
Ne8 {[%clk 0:02:47.9]} 13. O-O {[%clk 0:01:54.7]} 13... Qe7 {[%clk 0:02:44.1]}
14. Nc4 {[%clk 0:01:48.5]} 14... Rb8 {[%clk 0:02:33.5]} 15. a5 {[%clk 0:01:32]}
15... d6 {[%clk 0:02:20.6]} 16. Qd2 {[%clk 0:01:25.7]} 16... e5 {[%clk
0:02:19.5]} 17. Rfd1 {[%clk 0:01:25.4]} 17... Nd4 {[%clk 0:02:17.9]} 18. Nd5
{[%clk 0:01:24.7]} 18... Qd8 {[%clk 0:02:17.3]} 19. Ra3 {[%clk 0:01:08]} 19...
Be6 {[%clk 0:02:14.4]} 20. Ncb6 {[%clk 0:01:04.8]} 20... Nf6 {[%clk 0:02:06.6]}
21. Nxf6+ {[%clk 0:01:04]} 21... Qxf6 {[%clk 0:02:05.1]} 22. c3 {[%clk
0:01:03.2]} 22... Nxe2+ {[%clk 0:02:02.2]} 23. Qxe2 {[%clk 0:01:05.1]} 23...
Rbd8 {[%clk 0:01:56.4]} 24. c4 {[%clk 0:00:57.6]} 24... Qe7 {[%clk 0:01:36.1]}
25. Rad3 {[%clk 0:00:54.2]} 25... f5 {[%clk 0:01:34.8]} 26. Qd2 {[%clk
0:00:42.9]} 26... fxe4 {[%clk 0:01:18.5]} 27. Rxd6 {[%clk 0:00:43.9]} 27... Rxd6
{[%clk 0:00:53.7]} 28. Qxd6 {[%clk 0:00:45.8]} 28... Qf7 {[%clk 0:00:55.3]} 29.
Qc5 {[%clk 0:00:44.5]} 29... h6 {[%clk 0:00:40.9]} 30. b3 {[%clk 0:00:43.8]}
30... Bg4 {[%clk 0:00:39.6]} 31. Re1 {[%clk 0:00:43.2]} 31... Bf3 {[%clk
0:00:38.6]} 32. gxf3 {[%clk 0:00:25.6]} 32... Qg6+ {[%clk 0:00:36.7]} 33. Kh1
{[%clk 0:00:25.9]} 33... Rxf3 {[%clk 0:00:21.6]} 34. Qd5+ {[%clk 0:00:19.1]}
34... Kh8 {[%clk 0:00:20.6]} 35. Qxe4 {[%clk 0:00:20]} 35... Qf7 {[%clk
0:00:18.3]} 36. Re2 {[%clk 0:00:16.2]} 36... Rxb3 {[%clk 0:00:17.6]} 37. Kg2
{[%clk 0:00:16.1]} 37... Qe6 {[%clk 0:00:11.9]} 38. f3 {[%clk 0:00:12.1]} 38...
Qf6 {[%clk 0:00:08]} 39. h4 {[%clk 0:00:12]} 39... Ra3 {[%clk 0:00:06.4]} 40.
Nd5 {[%clk 0:00:13.1]} 40... Qe6 {[%clk 0:00:04.2]} 41. Qxe5 {[%clk 0:00:12.8]}
41... Qg6+ {[%clk 0:00:04.2]} 42. Qg3 {[%clk 0:00:12.9]} 42... Qxg3+ {[%clk
0:00:04.3]} 43. Kxg3 {[%clk 0:00:13.7]} 43... Rxa5 {[%clk 0:00:05.9]} 44. Re8+
{[%clk 0:00:13.9]} 44... Kh7 {[%clk 0:00:05.4]} 45. Re7 {[%clk 0:00:15.4]} 45...
Rc5 {[%clk 0:00:05.1]} 46. h5 {[%clk 0:00:16]} 46... Kg8 {[%clk 0:00:04.8]} 47.
Rxb7 {[%clk 0:00:14.7]} 47... Rxc4 {[%clk 0:00:05.1]} 48. Ra7 {[%clk 0:00:15.9]}
48... Rc5 {[%clk 0:00:04.8]} 49. Nf4 {[%clk 0:00:17]} 49... a5 {[%clk
0:00:04.3]} 50. Kg4 {[%clk 0:00:16.5]} 50... Rg5+ {[%clk 0:00:04.3]} 51. Kh4
{[%clk 0:00:17.9]} 51... Rf5 {[%clk 0:00:04.8]} 52. Ng6 {[%clk 0:00:15.3]} 1-0

[Event "*** Titled Tuesday Blitz AM"]
[Site "Chess.com"]
[Date "2020.01.07"]
[Round "2"]
[White "arjwezhrtdrz"]
[Black "Korona_91"]
[Result "0-1"]
[WhiteElo "2267"]
[BlackElo "2549"]
[TimeControl "180+2"]
[EndTime "9:25:10 PST"]
[Termination "Korona_91 won by resignation"]

1. e4 {[%clk 0:02:58.3]} 1... e6 {[%clk 0:03:00.3]} 2. d4 {[%clk 0:02:58.4]}
2... d5 {[%clk 0:03:01.8]} 3. Nd2 {[%clk 0:02:59.2]} 3... a6 {[%clk 0:03:02.4]}
4. exd5 {[%clk 0:02:59.8]} 4... exd5 {[%clk 0:03:03.5]} 5. Ngf3 {[%clk
0:03:00.5]} 5... c5 {[%clk 0:03:04.9]} 6. c3 {[%clk 0:03:01.3]} 6... Nc6 {[%clk
0:03:05.9]} 7. Be2 {[%clk 0:02:58.3]} 7... Nf6 {[%clk 0:03:05.8]} 8. O-O {[%clk
0:02:59.1]} 8... c4 {[%clk 0:03:03.5]} 9. b3 {[%clk 0:02:59.7]} 9... b5 {[%clk
0:03:04.5]} 10. a4 {[%clk 0:03:00.1]} 10... Be6 {[%clk 0:02:54.6]} 11. Ng5
{[%clk 0:02:50.5]} 11... Be7 {[%clk 0:02:53.7]} 12. Nxe6 {[%clk 0:02:44.1]}
12... fxe6 {[%clk 0:02:54.5]} 13. axb5 {[%clk 0:02:43.5]} 13... axb5 {[%clk
0:02:55.5]} 14. Rxa8 {[%clk 0:02:44.3]} 14... Qxa8 {[%clk 0:02:56.9]} 15. bxc4
{[%clk 0:02:45.6]} 15... bxc4 {[%clk 0:02:56.8]} 16. Nxc4 {[%clk 0:02:44.3]}
16... dxc4 {[%clk 0:02:55.8]} 17. Bxc4 {[%clk 0:02:45.3]} 17... O-O {[%clk
0:02:45.8]} 18. Bxe6+ {[%clk 0:02:45.5]} 18... Kh8 {[%clk 0:02:46.9]} 19. h3
{[%clk 0:02:39.7]} 19... Nd8 {[%clk 0:02:39.5]} 20. Bb3 {[%clk 0:02:38]} 20...
Bd6 {[%clk 0:02:32.2]} 21. Be3 {[%clk 0:02:20.7]} 21... Nc6 {[%clk 0:02:23.7]}
22. Qd3 {[%clk 0:02:19.4]} 22... Na5 {[%clk 0:02:14.2]} 23. Bc2 {[%clk
0:02:20.1]} 23... Qc6 {[%clk 0:02:10.7]} 24. Bg5 {[%clk 0:02:08.2]} 24... g6
{[%clk 0:02:02.9]} 25. Bh6 {[%clk 0:02:05.3]} 25... Rc8 {[%clk 0:01:55.4]} 26.
Bd2 {[%clk 0:01:49.7]} 26... Bb8 {[%clk 0:01:47.5]} 27. g3 {[%clk 0:01:45.4]}
27... Nc4 {[%clk 0:01:46.3]} 28. Bc1 {[%clk 0:01:45.7]} 28... Nd6 {[%clk
0:01:38.6]} 29. Bb2 {[%clk 0:01:36.5]} 29... Qb5 {[%clk 0:01:35.8]} 30. Qxb5
{[%clk 0:01:36.8]} 30... Nxb5 {[%clk 0:01:37.2]} 31. c4 {[%clk 0:01:22.9]} 31...
Rxc4 {[%clk 0:01:36.4]} 32. Bd3 {[%clk 0:01:24.1]} 32... Rb4 {[%clk 0:01:37.6]}
33. Ba1 {[%clk 0:01:14.9]} 33... Nxd4 {[%clk 0:01:26.5]} 34. Rd1 {[%clk
0:01:15.8]} 34... Ba7 {[%clk 0:01:19.2]} 35. Kg2 {[%clk 0:01:16.7]} 35... Kg7
{[%clk 0:01:20.1]} 36. g4 {[%clk 0:01:13.5]} 36... g5 {[%clk 0:01:19.4]} 37. Bf5
{[%clk 0:01:05.2]} 37... Nxf5 {[%clk 0:01:11.9]} 38. Rd7+ {[%clk 0:01:06]} 38...
Kf8 {[%clk 0:01:05.7]} 39. Rxa7 {[%clk 0:00:59.6]} 39... Nh4+ {[%clk 0:01:05.4]}
40. Kh2 {[%clk 0:00:56.4]} 40... Rf4 {[%clk 0:00:52.4]} 41. Kg1 {[%clk
0:00:45.3]} 41... h6 {[%clk 0:00:48.1]} 42. Ra6 {[%clk 0:00:42.1]} 42... Kf7
{[%clk 0:00:48.8]} 43. Ra7+ {[%clk 0:00:35.2]} 43... Ke8 {[%clk 0:00:48.6]} 44.
Ra6 {[%clk 0:00:35.9]} 44... Ne4 {[%clk 0:00:49.9]} 45. Rxh6 {[%clk 0:00:32.6]}
45... Nxf2 {[%clk 0:00:50]} 46. Rf6 {[%clk 0:00:27.4]} 46... Nxh3+ {[%clk
0:00:47.5]} 47. Kh2 {[%clk 0:00:28.5]} 47... Ra4 {[%clk 0:00:46.3]} 48. Re6+
{[%clk 0:00:19.5]} 48... Kd7 {[%clk 0:00:45.6]} 49. Rh6 {[%clk 0:00:13.5]} 49...
Nf4 {[%clk 0:00:41.5]} 50. Bf6 {[%clk 0:00:11.4]} 50... Ra2+ {[%clk 0:00:40.4]}
51. Kg1 {[%clk 0:00:05.6]} 51... Nf3+ {[%clk 0:00:40.1]} 52. Kf1 {[%clk
0:00:07]} 52... Nd3 {[%clk 0:00:38.8]} 53. Bd4 {[%clk 0:00:06]} 53... Nxd4
{[%clk 0:00:38.2]} 54. Rg6 {[%clk 0:00:07.1]} 54... Ne6 {[%clk 0:00:39.5]} 0-1

[Event "*** Titled Tuesday Blitz AM"]
[Site "Chess.com"]
[Date "2020.01.07"]
[Round "2"]
[White "DACF2905"]
[Black "cancrushyou"]
[Result "1-0"]
[WhiteElo "2211"]
[BlackElo "2461"]
[TimeControl "180+2"]
[EndTime "9:25:15 PST"]
[Termination "DACF2905 won on time"]

1. e4 {[%clk 0:03:01.9]} 1... c5 {[%clk 0:03:01]} 2. Nf3 {[%clk 0:03:01.9]} 2...
e6 {[%clk 0:02:58.7]} 3. d4 {[%clk 0:03:01.9]} 3... cxd4 {[%clk 0:03:00.6]} 4.
Nxd4 {[%clk 0:03:02.8]} 4... Nc6 {[%clk 0:03:02.1]} 5. Nc3 {[%clk 0:03:03.1]}
5... Qc7 {[%clk 0:03:02.1]} 6. Be3 {[%clk 0:03:02.8]} 6... a6 {[%clk 0:03:02]}
7. Be2 {[%clk 0:03:01.7]} 7... Nf6 {[%clk 0:03:02.8]} 8. O-O {[%clk 0:03:01.8]}
8... Be7 {[%clk 0:03:02.1]} 9. a3 {[%clk 0:03:01.4]} 9... O-O {[%clk 0:03:02.6]}
10. Qd2 {[%clk 0:03:01.3]} 10... b5 {[%clk 0:03:02.2]} 11. Nxc6 {[%clk
0:02:59.9]} 11... dxc6 {[%clk 0:03:01.2]} 12. Bf4 {[%clk 0:02:58]} 12... e5
{[%clk 0:03:01.8]} 13. Bg3 {[%clk 0:02:58.9]} 13... Be6 {[%clk 0:02:55.9]} 14.
Rad1 {[%clk 0:02:57]} 14... Rad8 {[%clk 0:02:53.8]} 15. Qg5 {[%clk 0:02:56.8]}
15... Ng4 {[%clk 0:02:13.5]} 16. Qc1 {[%clk 0:02:23.3]} 16... Bc5 {[%clk
0:02:13.9]} 17. h3 {[%clk 0:02:22.2]} 17... Nf6 {[%clk 0:02:13.4]} 18. Qg5
{[%clk 0:02:18.9]} 18... Bd6 {[%clk 0:02:03.9]} 19. Rxd6 {[%clk 0:02:16.3]}
19... Qxd6 {[%clk 0:02:02.8]} 20. Bxe5 {[%clk 0:02:16.1]} 20... Qe7 {[%clk
0:02:04]} 21. Qg3 {[%clk 0:02:09.4]} 21... Rd7 {[%clk 0:01:47.8]} 22. Bd3 {[%clk
0:01:53.4]} 22... Rfd8 {[%clk 0:01:45.6]} 23. Ne2 {[%clk 0:01:46.3]} 23... c5
{[%clk 0:01:43.5]} 24. Nf4 {[%clk 0:01:40.4]} 24... c4 {[%clk 0:01:42.9]} 25.
Be2 {[%clk 0:01:39.9]} 25... Rd2 {[%clk 0:01:28.8]} 26. Bf3 {[%clk 0:01:40.1]}
26... Rxc2 {[%clk 0:01:21.9]} 27. Nd5 {[%clk 0:00:55.5]} 27... Bxd5 {[%clk
0:01:18.4]} 28. exd5 {[%clk 0:00:56.2]} 28... Ne8 {[%clk 0:01:08.7]} 29. Re1
{[%clk 0:00:53.2]} 29... f6 {[%clk 0:01:07.4]} 30. Bc3 {[%clk 0:00:53.7]} 30...
Qf7 {[%clk 0:00:59.7]} 31. Rxe8+ {[%clk 0:00:50.4]} 31... Rxe8 {[%clk
0:00:58.7]} 32. d6 {[%clk 0:00:50.7]} 32... Rc1+ {[%clk 0:00:54.9]} 33. Kh2
{[%clk 0:00:50.5]} 33... Rxc3 {[%clk 0:00:56.1]} 34. bxc3 {[%clk 0:00:50.7]}
34... Qe6 {[%clk 0:00:56.8]} 35. Bb7 {[%clk 0:00:48.9]} 35... Qe5 {[%clk
0:00:44.3]} 36. Bxa6 {[%clk 0:00:48.8]} 36... Qxg3+ {[%clk 0:00:44.8]} 37. Kxg3
{[%clk 0:00:49.9]} 37... Re5 {[%clk 0:00:30.8]} 38. d7 {[%clk 0:00:47.9]} 38...
Rd5 {[%clk 0:00:31.6]} 39. Bxb5 {[%clk 0:00:49]} 39... Kf8 {[%clk 0:00:28.4]}
40. a4 {[%clk 0:00:48.1]} 40... Ke7 {[%clk 0:00:28]} 41. f3 {[%clk 0:00:48.8]}
41... Rd3 {[%clk 0:00:28.6]} 42. Bxc4 {[%clk 0:00:48.5]} 42... Rxc3 {[%clk
0:00:29.2]} 43. Bb5 {[%clk 0:00:49.5]} 43... g6 {[%clk 0:00:26.1]} 44. Kg4
{[%clk 0:00:48.1]} 44... h6 {[%clk 0:00:27.3]} 45. g3 {[%clk 0:00:47.9]} 45...
h5+ {[%clk 0:00:24.4]} 46. Kh4 {[%clk 0:00:48.6]} 46... Rxf3 {[%clk 0:00:24.1]}
47. g4 {[%clk 0:00:49.3]} 47... hxg4 {[%clk 0:00:18.1]} 48. hxg4 {[%clk
0:00:47.6]} 48... Rf2 {[%clk 0:00:19]} 49. Kg3 {[%clk 0:00:48.1]} 49... Rb2
{[%clk 0:00:18.8]} 50. Kf4 {[%clk 0:00:48.7]} 50... Rb4+ {[%clk 0:00:19.7]} 51.
Kg3 {[%clk 0:00:49.5]} 51... Rd4 {[%clk 0:00:20.7]} 52. Kf3 {[%clk 0:00:50.2]}
52... Kd8 {[%clk 0:00:22]} 53. Kg3 {[%clk 0:00:49.7]} 53... Kc7 {[%clk
0:00:23.1]} 54. Kf3 {[%clk 0:00:50.3]} 54... Kb6 {[%clk 0:00:24.3]} 55. Ke3
{[%clk 0:00:50]} 55... Rd5 {[%clk 0:00:22.9]} 56. Ke4 {[%clk 0:00:50.5]} 56...
Rd6 {[%clk 0:00:23.4]} 57. Kf4 {[%clk 0:00:47.7]} 57... Kc7 {[%clk 0:00:24.4]}
58. Ke4 {[%clk 0:00:47.7]} 58... Rd1 {[%clk 0:00:25.4]} 59. Kf4 {[%clk
0:00:45.6]} 59... Rd4+ {[%clk 0:00:26.3]} 60. Kf3 {[%clk 0:00:45.7]} 60... Kd8
{[%clk 0:00:23.3]} 61. Kg3 {[%clk 0:00:45.8]} 61... Ke7 {[%clk 0:00:24.6]} 62.
Kf3 {[%clk 0:00:46.6]} 62... Ke6 {[%clk 0:00:26]} 63. Kg3 {[%clk 0:00:47.2]}
63... Ke5 {[%clk 0:00:27.3]} 64. Kf3 {[%clk 0:00:48]} 64... Rd6 {[%clk
0:00:26.9]} 65. Kg3 {[%clk 0:00:47.7]} 65... Ke4 {[%clk 0:00:26]} 66. a5 {[%clk
0:00:48.5]} 66... Kd5 {[%clk 0:00:14.9]} 67. a6 {[%clk 0:00:47.8]} 1-0

[Event "*** Titled Tuesday Blitz AM"]
[Site "Chess.com"]
[Date "2020.01.07"]
[Round "2"]
[White "DishonorOnYourCow"]
[Black "CrgKrishna"]
[Result "1/2-1/2"]
[WhiteElo "2212"]
[BlackElo "2474"]
[TimeControl "180+2"]
[EndTime "9:25:18 PST"]
[Termination "Game drawn by agreement"]

1. d4 {[%clk 0:03:01.9]} 1... f5 {[%clk 0:02:59.1]} 2. c4 {[%clk 0:03:01.6]}
2... Nf6 {[%clk 0:02:59.9]} 3. g3 {[%clk 0:02:58.4]} 3... d6 {[%clk 0:03:00.8]}
4. Bg2 {[%clk 0:02:55.7]} 4... g6 {[%clk 0:03:01.6]} 5. Nh3 {[%clk 0:02:55.9]}
5... Bg7 {[%clk 0:03:02.2]} 6. O-O {[%clk 0:02:55.1]} 6... e6 {[%clk 0:03:02.7]}
7. Nf4 {[%clk 0:02:53.4]} 7... O-O {[%clk 0:03:01.2]} 8. Nc3 {[%clk 0:02:45]}
8... c6 {[%clk 0:03:01.7]} 9. Qc2 {[%clk 0:02:36.9]} 9... e5 {[%clk 0:03:02.2]}
10. dxe5 {[%clk 0:02:35.5]} 10... dxe5 {[%clk 0:03:04.1]} 11. Nd3 {[%clk
0:02:30.7]} 11... Qe7 {[%clk 0:03:04.9]} 12. e4 {[%clk 0:02:09.9]} 12... Nbd7
{[%clk 0:02:57.2]} 13. Re1 {[%clk 0:02:08.3]} 13... f4 {[%clk 0:02:53.1]} 14.
gxf4 {[%clk 0:02:02.2]} 14... Nh5 {[%clk 0:02:54]} 15. f5 {[%clk 0:01:24.1]}
15... Ndf6 {[%clk 0:02:54.4]} 16. Bg5 {[%clk 0:01:19.1]} 16... h6 {[%clk
0:02:53.2]} 17. Bh4 {[%clk 0:01:19.3]} 17... gxf5 {[%clk 0:02:52.2]} 18. exf5
{[%clk 0:01:15.7]} 18... Bxf5 {[%clk 0:02:54.1]} 19. Ne4 {[%clk 0:00:57.3]}
19... Rae8 {[%clk 0:02:42.2]} 20. Qe2 {[%clk 0:00:52.2]} 20... Qc7 {[%clk
0:02:36.3]} 21. Nxf6+ {[%clk 0:00:46.8]} 21... Nxf6 {[%clk 0:02:38.2]} 22. Bxf6
{[%clk 0:00:35.5]} 22... Bxf6 {[%clk 0:02:29.4]} 23. Be4 {[%clk 0:00:35.7]}
23... Be6 {[%clk 0:02:25.1]} 24. Kh1 {[%clk 0:00:32.6]} 24... Kh8 {[%clk
0:02:24.5]} 25. Qh5 {[%clk 0:00:31.9]} 25... Bg7 {[%clk 0:02:24.9]} 26. Qg6
{[%clk 0:00:30.9]} 26... Bg8 {[%clk 0:02:25.5]} 27. Rg1 {[%clk 0:00:28.6]} 27...
Rf6 {[%clk 0:02:25.6]} 28. Qg2 {[%clk 0:00:26.8]} 28... Rd8 {[%clk 0:02:21.3]}
29. Nxe5 {[%clk 0:00:20.4]} 29... Rd2 {[%clk 0:01:41.8]} 30. Ng6+ {[%clk
0:00:19.7]} 30... Rxg6 {[%clk 0:01:42.8]} 31. Qxg6 {[%clk 0:00:19.4]} 31... Rxf2
{[%clk 0:01:43.3]} 32. Rg2 {[%clk 0:00:19.2]} 32... Rf6 {[%clk 0:01:40.1]} 33.
Qg4 {[%clk 0:00:18]} 33... Rf4 {[%clk 0:01:40.3]} 34. Qg6 {[%clk 0:00:17.8]}
34... Rf6 {[%clk 0:01:40.8]} 35. Qg3 {[%clk 0:00:18.7]} 35... Qe7 {[%clk
0:01:40]} 36. Rag1 {[%clk 0:00:17.4]} 36... Rf7 {[%clk 0:01:39.5]} 37. Bg6
{[%clk 0:00:16.6]} 37... Rf8 {[%clk 0:01:31.3]} 38. Bh5 {[%clk 0:00:17.4]} 38...
Be5 {[%clk 0:01:30.5]} 39. Qg6 {[%clk 0:00:10.6]} 39... Bf4 {[%clk 0:01:21.8]}
40. Rf2 {[%clk 0:00:06.7]} 40... Bh7 {[%clk 0:01:13.2]} 41. Qg2 {[%clk
0:00:06.2]} 41... Be4 {[%clk 0:01:09.9]} 42. Bf3 {[%clk 0:00:07.3]} 42... Be3
{[%clk 0:00:57.1]} 43. Bxe4 {[%clk 0:00:04.4]} 43... Bxf2 {[%clk 0:00:58]} 44.
Rf1 {[%clk 0:00:05.3]} 44... Bd4 {[%clk 0:00:53.2]} 45. Rxf8+ {[%clk 0:00:05.2]}
45... Qxf8 {[%clk 0:00:55.1]} 46. Qf3 {[%clk 0:00:05.7]} 46... Qxf3+ {[%clk
0:00:54.8]} 47. Bxf3 {[%clk 0:00:07.6]} 47... Bxb2 {[%clk 0:00:56.2]} 48. Kg2
{[%clk 0:00:08.5]} 48... Kg7 {[%clk 0:00:56.9]} 49. h3 {[%clk 0:00:09.4]} 49...
Kf6 {[%clk 0:00:58.8]} 50. Bg4 {[%clk 0:00:10.5]} 50... Ke5 {[%clk 0:01:00.2]}
51. Kf3 {[%clk 0:00:11.4]} 51... Kd4 {[%clk 0:01:00.5]} 52. Be6 {[%clk
0:00:12.5]} 52... c5 {[%clk 0:00:58.6]} 53. Ke2 {[%clk 0:00:13.2]} 53... Kc3
{[%clk 0:00:59.4]} 54. Ke3 {[%clk 0:00:13.4]} 54... Bc1+ {[%clk 0:00:58.9]} 55.
Ke2 {[%clk 0:00:14.3]} 55... Kb2 {[%clk 0:00:59.8]} 56. Kd1 {[%clk 0:00:15.5]}
56... Bf4 {[%clk 0:00:59.5]} 57. a4 {[%clk 0:00:16.1]} 57... Kb3 {[%clk
0:01:00.6]} 58. a5 {[%clk 0:00:17]} 58... Kb4 {[%clk 0:01:00.3]} 59. Bd5 {[%clk
0:00:17.5]} 59... Kxa5 {[%clk 0:00:57.6]} 60. Bxb7 {[%clk 0:00:18.4]} 60... Kb4
{[%clk 0:00:59.5]} 61. Ba6 {[%clk 0:00:16.8]} 61... Ka5 {[%clk 0:00:57.3]} 62.
Bb7 {[%clk 0:00:17.7]} 62... Kb6 {[%clk 0:00:54]} 63. Bd5 {[%clk 0:00:18.2]}
63... a5 {[%clk 0:00:53.7]} 64. Kc2 {[%clk 0:00:19.5]} 64... a4 {[%clk
0:00:54.5]} 65. Kb2 {[%clk 0:00:19.5]} 65... Ka5 {[%clk 0:00:54.5]} 66. Ka2
{[%clk 0:00:19.5]} 66... Kb4 {[%clk 0:00:54.9]} 67. Be6 {[%clk 0:00:20.6]} 67...
h5 {[%clk 0:00:42.8]} 68. Bd5 {[%clk 0:00:19.4]} 68... h4 {[%clk 0:00:43.4]} 69.
Be6 {[%clk 0:00:20.5]} 69... Bd2 {[%clk 0:00:44]} 70. Bd5 {[%clk 0:00:21.2]}
1/2-1/2

[Event "*** Titled Tuesday Blitz AM"]
[Site "Chess.com"]
[Date "2020.01.07"]
[Round "2"]
[White "AquivaRubinstein"]
[Black "Shivagami"]
[Result "0-1"]
[WhiteElo "2436"]
[BlackElo "2146"]
[TimeControl "180+2"]
[EndTime "9:25:34 PST"]
[Termination "Shivagami won on time"]

1. d4 {[%clk 0:03:01.9]} 1... Nf6 {[%clk 0:02:59.8]} 2. c4 {[%clk 0:03:00.2]}
2... c5 {[%clk 0:03:00.2]} 3. d5 {[%clk 0:02:55.2]} 3... e6 {[%clk 0:03:01.2]}
4. Nc3 {[%clk 0:02:53.3]} 4... exd5 {[%clk 0:03:00.7]} 5. cxd5 {[%clk
0:02:52.9]} 5... d6 {[%clk 0:02:59.9]} 6. Nf3 {[%clk 0:02:46.2]} 6... g6 {[%clk
0:03:00.3]} 7. Nd2 {[%clk 0:02:46.9]} 7... Bg7 {[%clk 0:02:56]} 8. e4 {[%clk
0:02:47.2]} 8... O-O {[%clk 0:02:54.6]} 9. Be2 {[%clk 0:02:48.1]} 9... a6 {[%clk
0:02:55.6]} 10. a4 {[%clk 0:02:48.4]} 10... Nbd7 {[%clk 0:02:47.6]} 11. O-O
{[%clk 0:02:47]} 11... Rb8 {[%clk 0:02:37.6]} 12. Nc4 {[%clk 0:02:41.1]} 12...
Nb6 {[%clk 0:02:31.8]} 13. Na3 {[%clk 0:02:36.5]} 13... Qe7 {[%clk 0:02:20.6]}
14. a5 {[%clk 0:02:31.5]} 14... Nbd7 {[%clk 0:02:15.6]} 15. f3 {[%clk
0:02:06.5]} 15... b5 {[%clk 0:01:59.2]} 16. axb6 {[%clk 0:01:59.1]} 16... Nxb6
{[%clk 0:01:57]} 17. Rb1 {[%clk 0:01:43]} 17... Nfd7 {[%clk 0:01:45.5]} 18. Qc2
{[%clk 0:01:29.5]} 18... f5 {[%clk 0:01:36.7]} 19. Be3 {[%clk 0:01:22.3]} 19...
f4 {[%clk 0:01:09.8]} 20. Bf2 {[%clk 0:01:21.3]} 20... Ne5 {[%clk 0:01:05]} 21.
b4 {[%clk 0:01:17.6]} 21... Qg5 {[%clk 0:00:54.2]} 22. Kh1 {[%clk 0:01:13.6]}
22... c4 {[%clk 0:00:23.8]} 23. Na4 {[%clk 0:01:08.5]} 23... Nxa4 {[%clk
0:00:23]} 24. Qxa4 {[%clk 0:01:09.6]} 24... Bd7 {[%clk 0:00:23.3]} 25. Qc2
{[%clk 0:01:03.4]} 25... Bb5 {[%clk 0:00:23.4]} 26. Bd4 {[%clk 0:00:37.5]} 26...
Rfc8 {[%clk 0:00:21.4]} 27. Qc3 {[%clk 0:00:36.2]} 27... Qh6 {[%clk 0:00:20.4]}
28. Nc2 {[%clk 0:00:36.1]} 28... g5 {[%clk 0:00:21.4]} 29. Rg1 {[%clk
0:00:22.2]} 29... Rc7 {[%clk 0:00:22.7]} 30. g3 {[%clk 0:00:23.4]} 30... Ng6
{[%clk 0:00:19.3]} 31. Bxg7 {[%clk 0:00:20.3]} 31... Rxg7 {[%clk 0:00:20.3]} 32.
Nd4 {[%clk 0:00:19.8]} 32... fxg3 {[%clk 0:00:16.3]} 33. Rxg3 {[%clk 0:00:19.5]}
33... Nh4 {[%clk 0:00:15.8]} 34. Ne6 {[%clk 0:00:14.9]} 34... Rf7 {[%clk
0:00:14.6]} 35. Rbg1 {[%clk 0:00:15.2]} 35... Qf6 {[%clk 0:00:13.6]} 36. Rxg5+
{[%clk 0:00:09]} 36... Kh8 {[%clk 0:00:13.7]} 37. Qxf6+ {[%clk 0:00:06.5]} 37...
Rxf6 {[%clk 0:00:15.2]} 38. f4 {[%clk 0:00:07]} 38... c3 {[%clk 0:00:15.4]} 39.
Bxb5 {[%clk 0:00:04.7]} 39... axb5 {[%clk 0:00:17.3]} 40. e5 {[%clk 0:00:06.1]}
40... dxe5 {[%clk 0:00:16.9]} 41. fxe5 {[%clk 0:00:07.3]} 41... Rf7 {[%clk
0:00:18.5]} 42. d6 {[%clk 0:00:08.1]} 42... Nf3 {[%clk 0:00:19.3]} 43. Rg7
{[%clk 0:00:06.8]} 43... Rxg7 {[%clk 0:00:14]} 44. Rxg7 {[%clk 0:00:07.7]} 44...
Rc8 {[%clk 0:00:11.7]} 45. Rc7 {[%clk 0:00:07.2]} 45... Rg8 {[%clk 0:00:09.6]}
46. Ng7 {[%clk 0:00:04.2]} 46... Rxg7 {[%clk 0:00:10.3]} 47. Rxg7 {[%clk
0:00:05]} 47... Kxg7 {[%clk 0:00:11.1]} 48. d7 {[%clk 0:00:06]} 48... c2 {[%clk
0:00:12.6]} 49. d8=Q {[%clk 0:00:07.1]} 49... c1=Q+ {[%clk 0:00:14]} 50. Kg2
{[%clk 0:00:08.9]} 50... Ne1+ {[%clk 0:00:15]} 51. Kf2 {[%clk 0:00:07.8]} 51...
Qf4+ {[%clk 0:00:08.5]} 52. Kxe1 {[%clk 0:00:08.1]} 52... Qxb4+ {[%clk 0:00:09]}
53. Kf2 {[%clk 0:00:06.5]} 53... Qf4+ {[%clk 0:00:09.7]} 54. Kg2 {[%clk
0:00:07.9]} 54... Qxe5 {[%clk 0:00:10.2]} 55. Qd7+ {[%clk 0:00:08.4]} 55... Kh6
{[%clk 0:00:09.7]} 56. Qh3+ {[%clk 0:00:08.7]} 56... Kg6 {[%clk 0:00:10]} 57.
Qd3+ {[%clk 0:00:07.4]} 57... Qf5 {[%clk 0:00:10.2]} 58. Qd6+ {[%clk 0:00:07.7]}
58... Kh5 {[%clk 0:00:10.2]} 0-1